Cogmind - Beta 16 --- EXPLORER MODE // 2026.01.05 @ 12:44:52 Player: K.K.Y. Result: Destroyed by Autobeam Turret with Autobeam Performance ------------- Evolutions (0) 0 Regions Visited (3) 600 Robots Destroyed (39) 195 Value Destroyed (975) 975 Prototype IDs (14) 280 Alien Tech Used (0) 0 Bonus (175) 175 TOTAL SCORE: 2225 Bonus ------- Follower Combat Kills 175 Cogmind --------- Core Integrity 0/250 Matter 300/300 Energy 100/100 System Corruption 0% Temperature Cool (6) Movement Core (750) Ox14 Location -10/Subcaves Parts ------- > --- POWER (1) -------- (None) > --- PROPULSION (2) --- (None) > --- UTILITY (3) ------ High-capacity Storage Unit Structural Scanner Sensor Array > --- WEAPON (2) ------- Barrage Gun > --- INVENTORY (20) --- Light Nuclear Core Spiked Treads Arachnoskeleton Improved Heat Sink Improved Heat Sink Huge Storage Unit Humpback Humpback Improved Terrain Scanner Makeshift Hacking Suite Makeshift System Restoration Module Riot Gun Particle Gun Barrage Gun Dirty Datajack (20) Multitool Peak State ------------ > --- POWER ------------ (None) > --- PROPULSION ------- Light Treads > --- UTILITY ---------- High-capacity Storage Unit Structural Scanner Sensor Array > --- WEAPON ----------- Heavy Riot Gun Battle Cannon > --- INVENTORY -------- Light Nuclear Core Arachnoskeleton Improved Heat Sink Medium Storage Unit Huge Storage Unit Improved Terrain Scanner Makeshift Hacking Suite Riot Gun Beam Cannon Barrage Gun Multitool [Rating: 14] Favorites ----------- Power Ion Engine Engine Ion Engine Power Core Light Nuclear Core Propulsion Light Treads Treads Light Treads Utility Structural Scanner Device Structural Scanner Storage High-capacity Storage Unit Weapon Beam Cannon Energy Gun Particle Gun Energy Cannon Beam Cannon Ballistic Gun Barrage Gun Ballistic Cannon Battle Cannon Special Weapon Mining Laser Build | -11 -10 -10 -10 ------- Run | Yrd Mat Min Sub Slots Evolved 1 | . 1 . . Power . | . . . . Propulsion . | . . . . Utility 1 | . 1 . . Weapon . | . . . . Parts Attached 25 | 7 7 2 9 Power 3 | 1 1 . 1 Engine 2 | 1 1 . . Core 1 | . . . 1 Reactor . | . . . . Propulsion 5 | 2 2 . 1 Treads 5 | 2 2 . 1 Leg . | . . . . Wheel . | . . . . Hover . | . . . . Flight . | . . . . Utility 7 | 2 1 2 2 Device 4 | 1 1 1 1 Storage 3 | 1 . 1 1 Processor . | . . . . Hackware . | . . . . Protection . | . . . . Artifact . | . . . . Weapon 10 | 2 3 . 5 Energy Gun 5 | 2 2 . 1 Energy Cannon 2 | . . . 2 Ballistic Gun 1 | . . . 1 Ballistic Cannon 1 | . . . 1 Launcher . | . . . . Special Weapon 1 | . 1 . . Impact Weapon . | . . . . Slashing Weapon . | . . . . Piercing Weapon . | . . . . Special Melee Weapon . | . . . . Unidentified Prototypes . | . . . . Parts Lost 8 | . . . 8 Power 1 | . . . 1 Propulsion 3 | . . . 3 Utility . | . . . . Weapon 4 | . . . 4 Highest Loss Streak 1 | . . . 1 To Critical Strikes 1 | . . . 1 Average Backups 12 | 3 8 9 13 Power 1 | . 1 2 1 Propulsion . | . . . . Utility 6 | 1 3 4 6 Weapon 2 | 1 2 2 2 Tool/Special . | . . . . Unused Backups 18 | . . . 18 Power 2 | . . . 2 Propulsion 2 | . . . 2 Utility 8 | . . . 8 Weapon 4 | . . . 4 Tool/Special 2 | . . . 2 Average Slot Usage (%) 76 | . 87 99 71 Engine 3 | . 12 12 1 Core 1 | . . . 1 Treads 10 | . 25 25 6 Device 23 | . 12 24 25 Storage 11 | . 12 11 12 Energy Gun 6 | . 23 25 1 Energy Cannon 8 | . . . 11 Ballistic Gun 4 | . . . 5 Ballistic Cannon 2 | . . . 3 Peak Build Rating 14 | 7 11 11 14 Average Rating 11 | 4 9 10 11 On Entrance 7 | . 7 11 11 Avg Prop Armor Cover (%) . | . . . . Naked Turns . | . . . . Heaviest Build 49 | 20 23 23 49 Greatest Support 40 | 40 40 40 40 Greatest Overweight (x) 15 | 3 . . 15 Average Overweight (x) 3 | . . . 5 Largest Inventory Capacity 25 | 10 10 25 20 Average Capacity 15 | 9 10 10 17 Most Carried 20 | 7 10 11 20 Average Carried 14 | 3 8 9 15 Final Capacity 20 | 10 10 10 20 Final Carried 20 | 3 10 10 20 Class Distribution -------------------- 94% | Hacker-Mutant 5% | Scavenger-Mutant Dominant Class ---------------- Hacker-Mutant | -10/Materials Hacker-Mutant | -10/Mines Hacker-Mutant | -10/Subcaves Resources | -11 -10 -10 -10 ----------- Run | Yrd Mat Min Sub Matter Collected 952 | 270 153 59 470 Remotely . | . . . . Salvage Created 1293 | 112 687 32 462 Parts 81 | 7 32 8 34 Haulers Intercepted 2 | . 2 . . Recyclers Shooed . | . . . . Parts Field Recycled . | . . . . Retrieved Matter . | . . . . Parts Self-Destructed . | . . . . Prevented . | . . . . Parts Restored . | . . . . Kills | -11 -10 -10 -10 ------- Run | Yrd Mat Min Sub Combat Hostiles Destroyed 27 | . 8 4 15 Guns 12 | . 8 4 . Cannons 15 | . . . 15 Classes Destroyed 10 | 2 6 . 2 Worker 1 | . 1 . . Builder 2 | . 2 . . Tunneler 2 | 1 1 . . Hauler 2 | . 2 . . Recycler 3 | 1 2 . . Watcher 2 | . 2 . . Swarmer 6 | . 2 4 . Grunt 8 | . 6 . 2 Sentry 1 | . . . 1 Subdweller 12 | . . . 12 Best Kill Streak 6 | 2 6 2 2 Combat Bots Only 4 | . 4 2 2 Max Kills in Single Turn 2 | 1 2 1 1 Gunslinging 1 | . 1 . . Exploded . | . . . . Melee . | . . . . Uniques/NPCs Destroyed . | . . . . Combat | -11 -10 -10 -10 -------- Run | Yrd Mat Min Sub Hostile Shots Fired 199 | . 42 27 130 Missed 67 | . 9 9 49 Hits 132 | . 33 18 81 Projectile 132 | . 33 18 81 Critical Strikes 4 | . 1 . 3 Damage Taken 1386 | . 233 85 1068 Core 253 | . 52 20 181 Absorbed by Shields . | . . . . Ignored by Resistances 798 | . 151 63 584 Core Remaining (%) 100 | 100 . . . Volleys Fired 178 | 3 40 10 125 Largest 2 | 2 2 2 2 Hottest 165 | 100 165 130 165 Shots Fired 313 | 6 80 20 207 Gun 125 | 6 79 20 20 Cannon 165 | . . . 165 Launcher . | . . . . Special 23 | . 1 . 22 Kinetic 72 | . . . 72 Thermal 237 | 6 80 20 131 Explosive . | . . . . Electromagnetic 4 | . . . 4 Robot Hit Streak 46 | 4 35 7 46 Robot Miss Streak 4 | . 4 4 1 Penetration Max . | . . . . Secondary Targets 4 | . 2 2 . Max Gunslinging Chain 1 | . 1 1 . Shots Hit Robots 185 | 4 58 13 110 Core Hits 60 | 3 26 4 27 Critical Kills . | . . . . Critical Parts Destroyed . | . . . . Critical Strikes 9 | 1 5 . 3 Burn 6 | 1 5 . . Blast 3 | . . . 3 Melee Attacks . | . . . . Impact . | . . . . Slashing . | . . . . Piercing . | . . . . Sneak Attacks . | . . . . Combat Hostiles . | . . . . Follow-up Attacks . | . . . . Damage Inflicted 2939 | 51 813 201 1874 Guns 1220 | 51 813 201 155 Cannons 1527 | . . . 1527 Explosions . | . . . . Melee . | . . . . Ramming . | . . . . Kinetic 494 | . . . 494 Thermal 2377 | 51 813 201 1312 Explosive . | . . . . Electromagnetic 68 | . . . 68 Impact . | . . . . Slashing . | . . . . Piercing . | . . . . Highest Corruption . | . . . . Average Corruption . | . . . . Corruption Purged . | . . . . Corruption Blocked . | . . . . Overload Shots . | . . . . Overflow Damage 4 | . . . 4 Projectiles 4 | . . . 4 Explosions . | . . . . Melee . | . . . . Knockbacks 4 | . . . 4 Impact . | . . . . Kinetic 4 | . . . 4 Secondary . | . . . . Self-Inflicted Damage . | . . . . Shots . | . . . . Rammed . | . . . . Targets Rammed . | . . . . Kicked . | . . . . Crushed . | . . . . Highest Temperature 535 | 78 535 345 190 Average Temperature 141 | 33 163 174 48 Received Heat Transfer 891 | . 219 . 672 Effects 11 | . 10 1 . Shutdowns 3 | . 3 . . Energy Bleed 3 | . 2 1 . Matter Decay 2 | . 2 . . Short Circuit 1 | . 1 . . Damage (minor) 2 | . 2 . . Siege Activations . | . . . . Martial Activations . | . . . . Shielding Activations . | . . . . Robots Disrupted . | . . . . Combat Hostiles . | . . . . Robots Corrupted . | . . . . Combat Hostiles . | . . . . Parts Fried . | . . . . Impact Corruptions . | . . . . Robots Melted 1 | . 1 . . Combat Hostiles . | . . . . Parts Melted 10 | . 4 1 5 Heat Transferred 5987 | 222 2516 481 2768 Parts Sabotaged . | . . . . Parts Stolen . | . . . . Parts Stripped . | . . . . Power Chain Reactions . | . . . . Alert | -11 -10 -10 -10 ------- Run | Yrd Mat Min Sub Maximum Alert Level . | . . . . Low Security (%) 100 | 100 100 100 . Level 1 . | . . . . Level 2 . | . . . . Level 3 . | . . . . Level 4 . | . . . . Level 5 . | . . . . High Security . | . . . . Max Security . | . . . . Peak Influence 121 | 5 121 50 . Initial . | . . . . Average 9 | 1 17 3 . Influence Increases 475 | 10 272 103 90 Destroy 0b10 Robot/C 320 | . 160 80 80 Destroy 0b10 Robot/NC 60 | 10 50 . . Destroy Leader 68 | . 38 20 10 Successful Hack 9 | . 6 3 . Destroy Structure 3 | . 3 . . Lose Combat Pursuer 15 | . 15 . . Influence Decreases 475 | 10 272 103 90 Time Decay 465 | 10 272 103 80 Lost Part 10 | . . . 10 Squads Dispatched . | . . . . Investigation . | . . . . Extermination . | . . . . Reinforcement . | . . . . Assault . | . . . . Garrison . | . . . . Intercept . | . . . . Searches Triggered . | . . . . Construction Impeded . | . . . . Haulers Reinforced . | . . . . Active Scanning Responses . | . . . . Cargo Convoy Interrupts . | . . . . Stealth | -11 -10 -10 -10 --------- Run | Yrd Mat Min Sub Distress Signals . | . . . . Communications Jammed . | . . . . Distress Signals . | . . . . Times Spotted 45 | . 14 4 27 Peak Tracking Total 3 | . 3 2 2 Tactical Retreats 4 | . 1 . 3 Traps | -11 -10 -10 -10 ------- Run | Yrd Mat Min Sub Traps Triggered 3 | . 1 . 2 Indirectly . | . . . . Trap Hack Attempts . | . . . . Triggered . | . . . . Disarmed . | . . . . Reprogrammed . | . . . . Reused . | . . . . Traps Extracted . | . . . . Installed . | . . . . Triggered . | . . . . Machines | -11 -10 -10 -10 ---------- Run | Yrd Mat Min Sub Machines Disabled 2 | . 1 . 1 Max in Single Turn 1 | . 1 . 1 Machines Repaired . | . . . . Machines Dismantled . | . . . . Machines Sabotaged . | . . . . Overloaded Fab Kills . | . . . . Hacking | -11 -10 -10 -10 --------- Run | Yrd Mat Min Sub Machines Accessed 9 | . 6 1 2 Terminals 7 | . 6 1 . Fabricators . | . . . . Repair Stations . | . . . . Recycling Units . | . . . . Scanalyzers . | . . . . Garrison Access . | . . . . Total Hacks 18 | . 11 3 4 Successful 13 | . 7 2 4 Failed 5 | . 4 1 . Catastrophic . | . . . . Database Lockouts . | . . . . Manual 13 | . 10 3 . Terminals 14 | . 11 3 . Fabricators . | . . . . Repair Stations . | . . . . Recycling Units . | . . . . Scanalyzers . | . . . . Garrison Access . | . . . . Terminal Hacks 6 | . 1 1 4 Record 3 | . . . 3 Robot Analysis 1 | . 1 . . Prototype ID Bank 1 | . . 1 . Proto ID Catalog 1 | . . . 1 Fabricator Hacks . | . . . . Repair Station Hacks . | . . . . Recycling Unit Hacks . | . . . . Scanalyzer . | . . . . Garrison Access Hacks . | . . . . Unauthorized Hacks 7 | . 6 1 . Terminals 7 | . 6 1 . Botnet 7 | . 6 1 . Fabricators . | . . . . Repair Stations . | . . . . Recycling Units . | . . . . Scanalyzers . | . . . . Garrison Access . | . . . . Data Cores Recovered . | . . . . Used . | . . . . Hacking Detections 3 | . 2 1 . Full Trace Events . | . . . . Feedback Events . | . . . . Feedback Blocked . | . . . . Robot Schematics Acquired . | . . . . Robots Built . | . . . . Authchips . | . . . . Time . | . . . . Total Robot Build Rating . | . . . . Part Schematics Acquired . | . . . . Parts Built . | . . . . Authchips . | . . . . Time . | . . . . Total Part Build Rating . | . . . . Part Studies Acquired . | . . . . Parts Repaired . | . . . . Time . | . . . . Parts Recycled . | . . . . Recycled Matter . | . . . . Retrieved Matter . | . . . . Retrieved Components . | . . . . Parts Scanalyzed . | . . . . Part Schematics Acquired . | . . . . Parts Damaged . | . . . . Bothacking | -11 -10 -10 -10 ------------ Run | Yrd Mat Min Sub Used RIF Installer . | . . . . Robots Hacked . | . . . . Non-combat . | . . . . Combat . | . . . . Robot Hacks Applied . | . . . . Relay Couplers Released . | . . . . Fabnet Peak Effective % . | . . . . Robots Rewired . | . . . . Allies Hacked . | . . . . Hacks Repelled . | . . . . Allies | -11 -10 -10 -10 -------- Run | Yrd Mat Min Sub Total Allies 3 | . . 3 . Largest Group 3 | . . 3 3 Highest-Rated Group 40 | . . 40 40 Highest-Rated Ally 16 | . . 16 16 Total Orders . | . . . . Ally Attacks 55 | . . . 55 Total Damage 638 | . . . 638 Kills 6 | . . . 6 Allies Corrupted . | . . . . Allies Melted . | . . . . Intel | -11 -10 -10 -10 ------- Run | Yrd Mat Min Sub Active Infowar (turns) 8957 | 52 1004 1013 6888 Sensors 7360 | . . 472 6888 Structural 8957 | 52 1004 1013 6888 Robot Analysis Total 1 | . 1 . . Derelict Logs Recovered 2 | . . 1 1 Drone Launches . | . . . . Drone Recoveries . | . . . . Exploration | -11 -10 -10 -10 ------------- Run | Yrd Mat Min Sub Turns Passed 8999 | 94 1004 1013 6888 Spaces Moved 2801 | 56 531 570 1644 Core 557 | 32 . . 525 Treads 2244 | 24 531 570 1119 Legs . | . . . . Wheels . | . . . . Hover . | . . . . Flight . | . . . . Fastest Speed 50 | 50 160 160 160 Average Speed 295 | 123 160 160 391 Slowest Speed 800 | 200 160 160 800 Overloaded Moves . | . . . . Propulsion Burnouts . | . . . . Robots Hopped . | . . . . Potential Cave-ins . | . . . . Cave-ins Triggered . | . . . . Exploration Rate (%) 71 | 5 96 95 88 Regions Visited 3 Branch Regions 2 Pre-discovered Areas 1 | . . 1 . Known Exits Taken 3 | 1 1 1 . Unknown Exits Taken . | . . . . Scrap Searched 19 | . . 2 17 Spaces Dug 1 | . 1 . . Terrain Destroyed 2 | . 1 . 1 Melee . | . . . . Projectile 2 | . 1 . 1 AOE . | . . . . Terrain Rammed . | . . . . Walls Destroyed . | . . . . Machines Disabled . | . . . . Actions | -11 -10 -10 -10 --------- Run | Yrd Mat Min Sub Total 3169 | 74 604 653 1838 Wait 95 | . 10 55 30 Move 2798 | 55 530 569 1644 Hop . | . . . . Pick Up 43 | 9 10 8 16 Fast Attach 5 | 1 1 1 2 Attach 12 | 6 1 2 3 Detach 2 | . 1 1 . Swap 18 | . 6 3 9 Drop 18 | . 5 4 9 Fire 178 | 3 40 10 125 Melee . | . . . . Ram . | . . . . Kick . | . . . . Crush . | . . . . Escape Stasis . | . . . . Rewire . | . . . . Trap . | . . . . Miscellaneous . | . . . . Route ------- -11/Scrapyard -10/Materials (discovered 4 exits: *Mat x2 / *Min x2) -10/Mines (discovered 3 exits: *Mat x2 / *Sub) -10/Subcaves (discovered 3 exits: *Mat x2 / [*Scr]) History --------- Turn | Location | Event 6 | -11/Scrapyard | Identified exit to Materials 6 | -11/Scrapyard | Discovered exit to Materials (range 15) 95 | -11/Scrapyard | Entered Materials 95 | -10/Materials | Evolved 1 slot: Utility x1 118 | -10/Materials | Identified exit to Mines 118 | -10/Materials | Discovered exit to Mines (range 6) 327 | -10/Materials | Build established: Hacker-Mutant 447 | -10/Materials | Discovered exit to Mines (range 7) 660 | -10/Materials | Identified exit to Materials 660 | -10/Materials | Discovered exit to Materials (range 15) 858 | -10/Materials | Discovered exit to Materials (range 15) 1099 | -10/Materials | Entered Mines 1131 | -10/Mines | Discovered exit to Materials (range 11) 1218 | -10/Mines | Received a Rocket Launcher from a helpful Derelict 1384 | -10/Mines | Build established: Scavenger-Mutant 1423 | -10/Mines | Identified exit to Subcaves 1423 | -10/Mines | Discovered exit to Subcaves (range 11) 1489 | -10/Mines | Found a hidden stash of uninstalled traps 1777 | -10/Mines | Learned location of Storage (-7) 1825 | -10/Mines | Discovered exit to Materials (range 5) 1851 | -10/Mines | Assisted by bots powering up and referring to "LRC-V3" 1900 | -10/Mines | Build established: Hacker-Mutant 2112 | -10/Mines | Entered Subcaves 2112 | -10/Subcaves | Accompanied by 3 allies 2113 | -10/Subcaves | Approached by a straggling Scientist 2192 | -10/Subcaves | A swath of the cavern ceiling suddenly collapsed 2425 | -10/Subcaves | Disturbed a concealed Subdweller 3105 | -10/Subcaves | Visited Clippyterm 3109 | -10/Subcaves | Learned Research machine intel 3273 | -10/Subcaves | Core integrity fell below 50% 3397 | -10/Subcaves | Scientist uncovered a shortcut to Scraptown 3560 | -10/Subcaves | Shifting Twisted Machinery released Sub. Beam Cannon 3578 | -10/Subcaves | Shifting Twisted Machinery released Riot Gun 3581 | -10/Subcaves | A swath of the cavern ceiling suddenly collapsed 3701 | -10/Subcaves | Identified exit to Materials 3701 | -10/Subcaves | Discovered exit to Materials (range 14) 3725 | -10/Subcaves | Shifting Twisted Machinery released Sub. Machine Gun 3746 | -10/Subcaves | Shifting Twisted Machinery released Sub. Power Source 4064 | -10/Subcaves | Visited 4L-MR0's lab 4093 | -10/Subcaves | Found Arachnoskeleton 4591 | -10/Subcaves | Core integrity fell below 20% 5126 | -10/Subcaves | Disturbed a concealed Subdweller 8128 | -10/Subcaves | Shifting Twisted Machinery released Humpback 9000 | -10/Subcaves | Destroyed by Autobeam Turret with Autobeam Last Messages --------------- 05715_ Acquired 14 matter. 07375_ Searching scrap... 07375_ Found Sub. Laser. 07375_ Found Battle Rifle. 07375_ Found 50 Matter. 07376_ Acquired 16 matter. 07833_ Subatomizers dissect the Particle Gun. 08095_ PK-7ZS(R): "SUBMAD!" 08100_ Disposable Heat Sink melted. 08100_ PK-7ZS(R) destroyed. 08127_ Acquired 12 matter. Humpback falls loose from the Twisted Machinery. 08143_ Acquired Spk. Treads. 08321_ Acquired 4 matter. 08339_ Subatomizers dissect the Sub. Optics. 08489_ Acquired 8 matter. 08569_ Dropped Med. Storage Unit. 08570_ Acquired Mak. System Restoration Module. 08996_ Beam Cannon destroyed. Map ----- +----------------------------------------------------+ | "" ## ! ##???? ? # # % ##### | | & ##" ###???? ?####### ###### | | %& # # #"""#####??? ######## ####???? | | #& # "#""" ###??? ######## #########????? | | # " """"##??? ## ##### #########?????? | | ## #%" !#####? # ##????????????? | | # # # ######"" ##?????????????? | | ## ### ### ### ###?????????????? | | ## ## #### ##???? ##??????????????? | | ### #### ####??????????????????????? | | ###### ### ##########?????????????????? | | ####### #### ###?? ####?????????????????? | | ??###### ### ### ##??? ##?????????????????? | | ?########### #### ####?? ?????????????????? | | ?### ##### "### #### ????????? ?????????? | | ?## ## " " # ### ?? ## ????????? | | ?##"""" """=% % ## ## ?? ## ????????? | | ?## """"## =!&%[ ## ##?? ???????? | | ?## """" ###" ## #### ### ### ???????? | | ?###""" "#### ####### ## ## ??????? | | ?###" ""#### ##### ??????? | | ??##" " % ! ######## ##??????? | | ??##"" #### ###??????? | | ??## "" ### #### #### #######???????? | | ??### "" #### = ### ##### ########???????? | | ??### "" ####"" ### @ ##???####????????????? | | ???## #### " #### ###??????????????????? | | ???### ### " ##### ###?????????????????? | | ???#### ### " ###### ##?????????????????? | | ????#### ####""###?### ###?????????????????? | | ?????### #### ####??##### ###?????????????????? | | ??????## #########???##### ##??????????????????? | | ??????###########???????## ##??????????????????? | | ??????#####?????????????## ##??????????????????? | | ????????????????????????## ##??????????????????? | | ????????????????????????## ##??????????????????? | | ????????????????????????## ##??????????????????? | | ?????????????????????????? ##??????????????????? | | ??????????????????????????%% ##??????????????????? | | ?????????????????????????? ??????????????????? | | ??????????????????????????? ?????????????????????? | | ?????????????????????????????????????????????????? | | ?????????????????????????????????????????????????? | | ?????????????????????????????????????????????????? | | ?????????????????????????????????????????????????? | | ?????????????????????????????????????????????????? | | #####????????????????????????????????????????????? | | #########????????????????????????????????????????? | | #######???????????????????????????????????????? | | ###???????????????????????????????????????? | +----------------------------------------------------+ Best States ------------- Heat Dissipation 25 Energy Generation 14 Energy Capacity 250 Matter Stores 300 Matter Capacity 300 Sight Range 16 Robot Scan Range 14 Terrain Scan Density 10 Resistance: KI 35 Resistance: TH 35 Resistance: EX 35 Resistance: EM 35 Resistance: I 35 Resistance: S 35 Resistance: P 35 Evasion (%) 50 Recoil Reduction 2 Offensive Hacking 20 Item Schematics ----------------- None Robot Schematics ------------------ None Fabricated ------------ Nothing Repaired ---------- Nothing Studied --------- None Alien Tech Used ----------------- None Achievements -------------- None Challenges ------------ None Game ------ Seed SpreadSeismicExtrapolator Manual? 0 Play Time 00:26:42 Cumulative 246.2 hours Start 2026.01.05 @ 11:30:59 End 2026.01.05 @ 12:44:52 Sessions 1 Manual Loads 0 Difficulty Explorer Special Mode None Game No. 390 Rogue 0 Adventurer 0 Explorer 390 Win Type - Total 0 Types 0/0/0/0/0/0/0/0/0/0 Lore% 71 Gallery% 69 Achievement% 54 Wizard Run 0 Options --------- Layout 1 ASCII 0 Keyboard 0 Movement Mouse Keybinds 0 Fullscreen 1 Font 24/Smallcaps Map View 50x35 Zoom Use 0% Tactical HUD 1 Map Filters NONE Filters NONE Steam 1 RUN: 305fe913-1654-43e7-83bf-e73fe40715fc